bitfinex-derivatives/quotes_ETHF0:USTF0_20260209
["timestamp","ask_amount","ask_price","bid_price","bid_amount"]
[1770648944536,3.00562496,2044.7,2043.6,3.10290278]
[1770648944935,3.00562496,2045.0,2044.0,3.10290278]
[1770648945135,3.01058289,2045.1,2044.2,3.10290278]
[1770648945341,3.01058289,2045.1,2044.2,3.10783701]
[1770648945535,3.01058289,2045.1,2044.2,3.04739427]
[1770648945837,3.02527033,2045.7,2044.4,3.04246004]
[1770648946344,3.02527033,2045.7,2044.2,0.00493423]
[1770648946534,3.02527033,2045.7,2044.2,3.04739427]
[1770648946843,3.03132624,2045.7,2044.2,3.04739427]
[1770648947241,3.03132624,2045.7,2044.4,3.04246004]
[1770648947646,3.03132624,2045.7,2044.2,0.00493423]
[1770648948446,3.27592624,2045.7,2044.2,0.00493423]
[1770648949137,3.02527033,2045.6,2044.2,0.00493423]
[1770648949750,3.02527033,2045.4,2044.2,0.00493423]
[1770648950041,3.02527033,2045.4,2044.2,3.04739427]
[1770648951844,3.02527033,2045.4,2044.2,0.00493423]
[1770648952545,0.24461,2045.6,2044.2,0.00493423]
[1770648952546,3.02527033,2045.2,2044.2,0.00493423]
[1770648952743,0.24471,2044.7,2043.2,3.04246004]
[1770648952947,3.02527033,2044.6,2043.2,3.04246004]
[1770648953549,49.11528269,2045.0,2043.6,3.04246004]
[1770648953550,3.02527033,2045.0,2043.6,3.04246004]
[1770648953750,3.02527033,2045.0,2043.8,3.04246004]
[1770648954555,3.02527033,2045.0,2043.9,6.34623989]
[1770648954757,3.02527033,2044.8,2043.6,0.00494901]
[1770648955050,3.02527033,2044.2,2042.8,3.04246004]
[1770648955447,3.02527033,2044.2,2043.0,3.04246004]
[1770648955952,3.02527033,2044.2,2042.9,3.28738004]
[1770648956152,3.02879534,2044.2,2042.9,3.29154857]
[1770648956350,3.02879534,2044.2,2043.1,3.04246004]
[1770648957856,3.02879534,2044.2,2043.2,6.29664118]
[1770648958160,3.02879534,2044.2,2043.0,3.04246004]
[1770648958360,3.02879534,2044.2,2043.0,6.29664118]
[1770648958563,3.02879534,2044.2,2042.9,0.00416853]
[1770648959158,3.02879534,2044.2,2042.9,3.04662857]
[1770648959559,3.02527033,2044.0,2042.9,0.00416853]
[1770648960261,3.02527033,2044.0,2042.9,3.04662857]
[1770648961154,3.02527033,2044.0,2042.9,0.00416853]
[1770648961464,3.02527033,2044.0,2041.5,3.04246004]
[1770648961465,3.02527033,2043.4,2041.5,3.04246004]
[1770648961659,3.02527033,2043.4,2041.7,3.04246004]
[1770648961853,3.02527033,2043.3,2041.6,0.24508]
[1770648962059,3.02527033,2043.1,2041.5,9.79551504]
[1770648962260,3.02527033,2043.1,2041.8,3.04246004]
[1770648962659,3.02527033,2043.1,2041.9,6.47155364]
[1770648962959,3.02527033,2043.1,2041.5,3.56942766]
[1770648963164,3.02527033,2043.1,2041.5,3.29273472]
[1770648963367,3.02527033,2042.9,2041.6,9.27364554]
[1770648963763,3.02527033,2042.9,2041.6,3.04246004]
[1770648964468,3.02527033,2042.9,2041.8,3.04246004]
[1770648965859,3.02527033,2042.9,2041.5,0.52944814]
[1770648966063,3.02527033,2042.9,2041.5,3.04765472]
[1770648966468,3.02527033,2042.8,2041.5,3.04765472]
[1770648966668,3.02527033,2042.8,2041.7,3.04246004]
[1770648966972,3.02527033,2042.8,2041.9,3.04246004]
[1770648967171,3.02527033,2043.1,2041.9,3.28750004]
[1770648967373,3.02527033,2043.1,2042.1,3.04246004]
[1770648968064,3.02527033,2043.6,2042.3,3.04246004]
[1770648968466,3.02527033,2043.9,2042.7,3.04246004]
[1770648968869,3.02527033,2043.9,2042.9,3.04246004]
[1770648969371,3.02879534,2044.2,2043.0,6.47397181]
[1770648969569,3.02879534,2044.2,2043.0,3.29161456]
[1770648969777,3.02879534,2044.2,2043.2,3.04246004]
[1770648970264,3.02527033,2044.0,2043.0,0.00424452]
[1770648970668,3.02879534,2044.2,2043.0,3.04670456]
[1770648971270,3.02879534,2044.2,2043.0,0.00424452]
[1770648971778,3.02879534,2044.2,2043.0,3.04670456]
[1770648972173,3.02879534,2044.2,2043.2,3.04246004]
[1770648972673,3.02879534,2044.2,2043.5,3.28731004]
[1770648972674,0.00352501,2044.2,2043.5,3.28731004]
[1770648972883,3.02527033,2044.8,2043.8,3.04246004]
[1770648973582,3.83100831,2045.7,2044.0,3.04246004]
[1770648973583,3.02527033,2045.3,2044.0,3.04246004]
[1770648973987,3.02527033,2045.3,2043.8,6.37548337]
[1770648973988,3.02527033,2045.1,2043.8,6.37548337]
[1770648974171,3.02527033,2045.1,2043.5,3.04246004]
[1770648974483,3.02527033,2045.1,2043.7,3.04246004]
[1770648974874,3.02527033,2045.1,2043.9,3.04246004]
[1770648975179,3.02527033,2045.1,2044.1,3.04246004]
[1770648975379,3.02527033,2045.1,2044.0,6.29743879]
[1770648975891,2.59678328,2045.2,2044.1,2.64186465]
[1770648976380,0.00587766,2045.3,2044.6,2.64186465]
[1770648976772,2.59678328,2046.1,2044.7,2.88657465]
[1770648976977,2.59678328,2046.1,2044.7,9.22745524]
[1770648977181,2.59678328,2046.1,2044.8,2.64186465]
[1770648977686,2.59678328,2046.1,2044.2,6.02134]
[1770648977687,2.59678328,2046.0,2044.5,2.64186465]
[1770648978184,2.60245878,2046.0,2044.5,2.64753475]
[1770648978683,2.60245878,2046.0,2044.9,2.64186465]
[1770648979280,2.60245878,2046.0,2045.1,2.66390643]
[1770648979878,2.60245878,2046.0,2044.5,2.66957653]
[1770648980381,2.60245878,2046.0,2044.7,2.66390643]
[1770648980583,2.60245878,2046.0,2044.5,0.0056701]
[1770648980783,2.60245878,2046.0,2044.5,2.66957653]
[1770648981891,2.60245878,2046.0,2044.7,2.66390643]
[1770648982589,2.60245878,2046.0,2044.7,2.90860643]
[1770648984891,2.60245878,2046.0,2044.7,2.66390643]
[1770648985485,2.60245878,2046.0,2045.1,2.66390643]
[1770648986190,2.60245878,2046.0,2044.8,2.66390643]
[1770648986885,2.60245878,2046.0,2045.0,2.66390643]
[1770648987280,2.60245878,2046.0,2044.9,0.24468]
[1770648987480,2.60245878,2046.0,2044.7,2.66390643]
[1770648987793,2.60245878,2046.0,2044.5,2.66957653]
[1770648987994,2.59709933,2045.2,2043.5,2.66390643]
[1770648988289,2.59709933,2045.0,2043.9,0.28259776]
[1770648988486,0.24466,2045.1,2043.4,0.24486]
[1770648988487,2.59709933,2044.8,2043.7,2.66390643]
[1770648988987,2.59709933,2044.8,2043.8,8.89115955]
[1770648989191,2.59709933,2044.8,2043.8,2.66390643]
[1770648989794,2.59709933,2044.8,2043.7,0.0034638]
[1770648990692,2.59709933,2044.8,2043.7,2.66737023]
[1770648992497,2.59709933,2044.8,2043.9,2.66390643]
[1770648992696,2.59709933,2045.5,2044.1,2.66390643]
[1770648993088,2.59709933,2045.4,2044.1,2.66390643]
[1770648994096,40.8,2045.5,2043.8,2.66390643]
[1770648994097,2.59709933,2045.2,2043.8,2.66390643]
[1770648994594,2.59709933,2045.2,2043.8,9.01661615]
[1770648994792,2.59709933,2045.2,2043.7,0.0034638]
[1770648995097,2.59709933,2045.2,2043.7,2.66737023]
[1770648995490,2.59709933,2045.2,2043.9,2.66390643]
[1770648996095,2.59709933,2045.2,2043.8,2.90871643]
[1770648996697,2.59709933,2045.0,2043.8,0.24481]
[1770648997102,2.59709933,2045.0,2043.7,0.0034638]
[1770648997299,2.59709933,2045.0,2043.7,2.66737023]
[1770648997494,2.59709933,2045.0,2043.7,2.91219023]
[1770648998498,2.59709933,2045.0,2043.9,2.90870643]
[1770648998802,2.89617298,2046.0,2045.0,0.24467]
[1770648998999,0.0056755,2046.0,2045.0,0.24467]
[1770648999300,2.59709933,2046.8,2045.7,2.66390643]
[1770648999698,2.59709933,2046.8,2045.2,2.66390643]
[1770648999992,2.59709933,2046.8,2045.2,8.89545258]
[1770649000195,2.60273504,2046.8,2045.3,2.66390643]
[1770649000398,2.60273504,2046.8,2045.5,2.66390643]
[1770649000598,2.60273504,2046.8,2045.4,6.23154615]
[1770649000798,2.60273504,2046.8,2045.2,2.66775483]
[1770649001499,2.60273504,2046.8,2045.4,2.66390643]
[1770649002298,2.60273504,2046.8,2045.4,2.90851643]
[1770649002904,0.00563571,2046.8,2045.9,2.66390643]
[1770649003901,0.00563571,2046.8,2045.4,6.01757]
[1770649003902,2.60273504,2046.8,2045.4,2.66390643]
[1770649004501,2.60273504,2046.8,2045.6,2.66390643]
[1770649004802,2.60273504,2046.8,2045.3,2.66390643]
[1770649005307,2.60273504,2046.8,2045.4,2.66390643]
[1770649005807,2.58495994,2046.4,2045.2,0.0038484]
[1770649006003,2.58495994,2045.8,2044.2,2.3315929]
[1770649006201,6.01637,2045.9,2044.2,2.3315929]
[1770649006202,2.58495994,2045.4,2044.2,2.3315929]
[1770649006397,2.58495994,2045.2,2043.9,2.3315929]
[1770649006603,2.58495994,2045.5,2044.3,2.3315929]
[1770649006805,2.58495994,2045.5,2044.4,2.3315929]
[1770649007108,2.5902817,2045.5,2044.4,2.33605929]
[1770649007907,2.5902817,2045.5,2044.4,0.00446639]
[1770649008304,2.5902817,2045.5,2044.4,2.33605929]
[1770649009101,2.5902817,2045.5,2044.6,2.3315929]
[1770649009298,0.00532176,2045.5,2044.6,2.3315929]
[1770649009496,2.5902817,2045.5,2044.6,2.3315929]
[1770649010109,2.5902817,2045.5,2044.4,0.00446639]
[1770649010703,0.00532176,2045.5,2044.6,2.3315929]
[1770649011302,2.5902817,2045.5,2044.6,2.3315929]
[1770649011498,0.00532176,2045.5,2044.6,2.3315929]
[1770649011705,0.00532176,2045.5,2044.8,2.3315929]
[1770649012107,2.5902817,2045.5,2044.8,2.3315929]
[1770649012306,2.5902817,2045.5,2044.6,0.24471]
[1770649012602,2.5902817,2045.5,2044.6,2.5763029]
[1770649013206,2.5902817,2045.5,2044.4,0.00446639]
[1770649013806,2.5902817,2045.5,2044.4,2.33605929]
[1770649014006,2.5902817,2045.5,2044.4,0.00446639]
[1770649014407,2.5902817,2045.5,2044.4,2.33605929]
[1770649015105,2.58495994,2045.3,2044.4,0.00446639]
[1770649018213,0.00532176,2045.5,2044.5,2.3315929]
[1770649018419,2.58495994,2045.9,2044.6,2.5763129]
[1770649018726,2.58495994,2045.9,2045.1,2.3315929]
[1770649019316,2.58495994,2046.2,2045.3,2.3315929]
[1770649019511,2.59096886,2046.2,2045.3,2.3315929]
[1770649020426,2.59096886,2046.2,2044.9,3.831]
[1770649020617,2.58495994,2046.0,2044.5,6.1625929]
[1770649020924,2.58495994,2045.6,2044.4,0.00446639]
[1770649021315,2.58495994,2045.2,2044.4,0.00446639]
[1770649021623,2.58495994,2044.6,2043.4,2.3315929]
[1770649021922,2.58495994,2044.6,2043.7,2.3315929]
[1770649022320,2.58495994,2044.6,2043.3,6.49816685]
[1770649022524,2.58495994,2044.2,2042.7,0.28102438]
[1770649022820,2.58495994,2044.2,2043.0,2.3315929]
[1770649023023,2.58495994,2044.2,2042.9,6.27561345]
[1770649023219,2.58495994,2044.2,2042.7,2.60677923]
[1770649023420,2.58495994,2044.2,2042.9,2.3315929]
[1770649023618,2.58495994,2044.2,2043.1,2.3315929]
[1770649024222,2.58495994,2044.1,2042.7,0.00615839]
[1770649024420,2.58495994,2044.1,2042.7,2.33775129]
[1770649024618,2.58495994,2044.1,2042.7,2.58269129]
[1770649024925,2.58495994,2044.1,2043.0,2.3315929]
[1770649025423,0.00628943,2044.6,2043.5,2.5764429]
[1770649025618,2.59124937,2044.6,2043.5,2.49507286]
[1770649025924,2.59124937,2044.6,2043.7,2.3315929]
[1770649026232,2.59124937,2044.6,2043.5,0.24485]
[1770649026425,2.59124937,2044.6,2043.5,2.5764429]
[1770649026626,2.59124937,2044.6,2043.8,6.22207781]
[1770649026826,2.59124937,2044.6,2043.7,0.24483]
[1770649027018,2.59124937,2044.6,2043.2,2.3315929]
[1770649027914,2.59124937,2044.6,2043.4,2.3315929]
[1770649028828,2.59124937,2044.6,2043.1,2.5764829]
[1770649029229,2.59124937,2044.6,2043.3,2.3315929]
[1770649030430,2.58495994,2044.4,2042.8,2.3315929]
[1770649030723,2.58495994,2044.2,2042.9,6.21523299]
[1770649030927,2.58495994,2044.0,2042.9,6.21523299]
[1770649031115,2.58495994,2044.0,2042.7,0.00615839]
[1770649031316,2.58495994,2044.0,2042.7,2.33775129]
[1770649031517,2.58495994,2044.0,2042.9,2.3315929]
[1770649031720,2.58495994,2044.0,2042.7,2.33775129]
[1770649032316,2.58495994,2044.0,2042.9,2.3315929]
[1770649032725,2.58495994,2044.3,2043.1,2.3315929]
[1770649033123,2.58495994,2044.3,2043.3,2.3315929]
[1770649034618,2.59124937,2044.6,2043.5,2.3315929]
[1770649035117,2.59124937,2044.6,2043.4,0.24483]
[1770649035323,0.00628943,2044.6,2043.7,2.29232851]
[1770649035524,2.22550065,2044.6,2043.7,2.29232851]
[1770649035923,0.00628943,2044.6,2043.9,2.29232851]
[1770649036123,2.21921122,2044.9,2043.9,2.29232851]
[1770649036323,2.21921122,2044.9,2044.1,2.29232851]
[1770649036525,43.09624269,2045.9,2044.2,2.53706851]
[1770649036526,2.21921122,2045.1,2044.2,2.53706851]
[1770649036820,2.21921122,2045.1,2044.3,2.29232851]
[1770649037023,2.22395854,2045.1,2044.3,0.0052134]
[1770649037326,2.22395854,2045.1,2044.3,2.29754191]
[1770649037927,34.76998748,2046.3,2044.4,2.53704851]
[1770649038127,2.21921122,2046.2,2044.7,2.29232851]
[1770649038430,2.21921122,2046.0,2044.7,2.29232851]
[1770649039023,2.22509777,2046.0,2044.7,2.29232851]
[1770649039218,2.22509777,2046.0,2044.8,0.24467]
[1770649039427,2.22509777,2046.0,2044.9,2.30795679]
[1770649039926,2.22509777,2046.0,2044.8,2.55262679]
[1770649040324,2.22509777,2046.0,2045.0,2.30795679]
[1770649040924,2.22509777,2046.0,2045.2,2.30795679]
[1770649041126,0.00588655,2046.0,2045.2,2.30795679]
[1770649042025,2.3448226,2046.0,2044.9,2.30795679]
[1770649042225,2.3448226,2046.0,2044.5,0.2447]
[1770649042429,2.33893605,2045.8,2044.3,2.31317019]
[1770649042629,2.33893605,2045.2,2043.4,4.2013589]
[1770649042826,2.33893605,2045.2,2043.3,2.55279679]
[1770649043026,2.33893605,2045.0,2043.3,2.55279679]
[1770649043326,2.33893605,2045.0,2043.4,8.53562129]
[1770649043627,2.33893605,2045.0,2043.4,0.00396712]
[1770649043825,2.33893605,2045.0,2043.4,2.31192391]
[1770649044033,2.33893605,2045.0,2043.6,2.30795679]
[1770649045632,2.33893605,2044.9,2043.4,0.00396712]
[1770649046023,2.33893605,2044.5,2043.4,0.00396712]
[1770649046225,2.34402308,2044.5,2043.4,0.00396712]
[1770649047027,2.34402308,2044.5,2043.4,2.31192391]
[1770649047331,2.34402308,2044.5,2043.4,0.00396712]
[1770649048223,2.33893605,2044.3,2042.5,2.30795679]
[1770649048530,2.33893605,2044.1,2042.5,2.30795679]
[1770649048739,2.33893605,2044.1,2042.7,2.30795679]
[1770649049433,2.33893605,2044.1,2042.7,2.31324668]
[1770649050228,2.33893605,2043.0,2042.1,4.2013589]
[1770649050432,2.33893605,2042.5,2040.8,2.30795679]
[1770649050737,2.33893605,2042.1,2040.3,8.7778449]
[1770649050936,2.33893605,2042.1,2040.4,2.55314679]
[1770649051234,2.33893605,2042.1,2040.4,0.00609017]
[1770649051235,6.17019565,2041.8,2040.4,0.00609017]
[1770649051531,2.33893605,2041.6,2040.4,2.55923696]
[1770649051732,2.33893605,2041.6,2040.5,2.30795679]
[1770649052836,2.33893605,2041.6,2040.4,0.00609017]
[1770649053329,2.33893605,2041.6,2040.4,2.31404696]
[1770649053837,2.33893605,2041.6,2040.4,0.00609017]
[1770649054323,2.33893605,2041.4,2040.4,0.00609017]
[1770649054723,8.61306605,2041.4,2039.5,2.30795679]
[1770649054932,2.33893605,2041.2,2039.5,2.30795679]
[1770649055122,0.24509,2041.4,2039.2,6.31786308]
[1770649055123,2.33893605,2041.0,2039.7,2.30795679]
[1770649055527,2.33893605,2041.0,2039.2,6.03545]
[1770649055528,2.33893605,2041.0,2039.9,2.30795679]
[1770649055832,2.33893605,2041.0,2039.9,2.31194349]
[1770649056229,2.33893605,2041.8,2040.1,2.30795679]
[1770649056632,2.33893605,2041.7,2040.3,2.30795679]
[1770649056826,2.33893605,2041.6,2040.0,2.30795679]
[1770649057033,2.33893605,2041.6,2039.9,0.0039867]
[1770649057231,2.33893605,2041.6,2039.9,2.31194349]
[1770649057631,2.33893605,2041.6,2040.1,2.30795679]
[1770649058030,2.33893605,2041.6,2040.2,6.45782066]
[1770649058336,2.33893605,2041.6,2040.3,2.30795679]
[1770649058934,2.33893605,2041.6,2040.0,2.30795679]
[1770649060435,2.33893605,2041.4,2040.0,2.30795679]
[1770649060739,2.33893605,2041.4,2040.2,2.30795679]
[1770649060935,2.33893605,2042.0,2040.8,2.30795679]
[1770649061238,0.00607986,2042.1,2041.2,2.30795679]
[1770649061429,0.00607986,2042.1,2041.4,2.30795679]
[1770649061632,2.33893605,2042.6,2041.6,2.30795679]
[1770649061830,2.33893605,2042.6,2041.7,2.55299679]
[1770649062036,2.33893605,2042.6,2041.7,2.30795679]
[1770649062432,2.33893605,2043.2,2041.9,2.30795679]
[1770649062637,2.3436705,2043.2,2041.8,6.24765394]
[1770649062938,2.3436705,2043.2,2041.7,2.30795679]
[1770649063339,2.3436705,2043.2,2041.9,6.21842021]
[1770649063539,2.3436705,2043.2,2041.9,2.30795679]
[1770649063747,2.3436705,2043.2,2042.1,2.30795679]
[1770649063937,0.00473445,2043.2,2042.2,2.55293679]
[1770649064139,0.00473445,2043.2,2042.2,9.00671621]
[1770649064335,0.00473445,2043.2,2042.3,2.30795679]
[1770649064643,2.33893605,2043.8,2042.5,2.2807074]
[1770649065033,2.33893605,2043.8,2042.7,2.27597295]
[1770649065633,2.34266592,2043.8,2042.7,2.27597295]
[1770649065845,2.03187271,2044.3,2043.1,2.07824067]
[1770649066245,2.03187271,2044.3,2043.3,2.07824067]
[1770649066745,0.00464631,2044.3,2043.5,2.07824067]
[1770649066940,0.00464631,2044.3,2043.3,1e-08]
[1770649066941,2.03651902,2044.3,2043.3,1e-08]
[1770649067536,2.03651902,2044.3,2043.3,2.07824068]
[1770649067735,2.03651902,2044.3,2043.3,1e-08]
[1770649069442,2.28125902,2044.3,2043.3,1e-08]
[1770649070041,2.03187271,2044.2,2043.3,1e-08]
[1770649071842,2.03187271,2044.0,2043.3,1e-08]
[1770649073237,2.03187271,2044.0,2042.5,2.07824067]
[1770649073449,2.03187271,2043.8,2041.9,2.07824067]
[1770649073650,2.03187271,2043.8,2041.9,2.35690159]
[1770649073952,2.03187271,2043.8,2042.0,2.07824067]
[1770649074448,2.03187271,2043.8,2042.2,2.07824067]
[1770649074950,2.03187271,2043.8,2042.4,2.07824067]
[1770649076050,2.03187271,2043.8,2042.6,2.15274008]
[1770649077353,2.03187271,2043.8,2042.6,5.98374008]
[1770649077647,1.99887967,2043.6,2042.3,2.15274008]
[1770649078146,1.99887967,2043.6,2042.0,0.00574327]
[1770649078147,1.99887967,2043.4,2042.0,2.15848335]
[1770649078854,1.99887967,2043.2,2042.0,0.00574327]
[1770649079242,5.83013927,2043.0,2042.0,0.00574327]
[1770649079445,0.24487,2043.1,2041.7,2.15274008]
[1770649079446,1.99887967,2042.9,2041.7,2.15274008]
[1770649080053,1.99887967,2042.9,2041.9,2.15274008]
[1770649080455,1.99887967,2042.9,2041.9,2.1577756]
[1770649080657,1.99887967,2043.2,2042.0,2.39775008]
[1770649081654,1.99887967,2043.6,2042.3,2.15274008]
[1770649081947,2.24370967,2043.5,2041.9,0.00503552]
[1770649082153,2.24370967,2043.5,2042.0,2.15274008]
[1770649082950,1.99887967,2043.2,2041.9,0.00503552]
[1770649083153,1.99887967,2043.0,2041.9,2.1577756]
[1770649084158,1.99887967,2042.8,2041.9,0.00503552]
[1770649084360,2.00508228,2042.8,2041.5,2.15274008]
[1770649084759,0.00620261,2042.8,2041.8,2.15274008]
[1770649084961,0.00620261,2042.8,2042.0,2.15274008]
[1770649085459,0.00620261,2042.8,2042.0,2.15686032]
[1770649085656,1.99887967,2043.2,2042.0,2.15686032]
[1770649086259,1.99887967,2043.7,2042.4,2.15274008]
[1770649086466,1.99887967,2043.7,2042.6,2.15274008]
[1770649086665,2.00494036,2043.7,2042.6,2.15274008]
[1770649086861,2.00494036,2043.7,2042.3,2.15274008]
[1770649087060,1.99887967,2043.5,2042.3,2.15274008]
[1770649089362,2.00494036,2043.7,2042.6,2.15274008]
[1770649090364,2.00494036,2043.7,2042.8,2.15274008]
[1770649090664,1.99887967,2044.0,2043.0,2.15274008]
[1770649091167,1.99887967,2044.0,2043.2,2.15274008]
[1770649091362,1.99887967,2044.0,2042.7,12.12506538]
[1770649091557,1.99887967,2044.0,2042.8,2.15274008]
[1770649091757,2.0031854,2044.0,2042.8,2.15274008]
[1770649092366,2.0031854,2044.0,2042.3,2.15274008]
[1770649094164,1.99887967,2043.9,2042.6,0.24493]
[1770649094363,1.99887967,2043.9,2042.7,2.15274008]
[1770649094961,1.99887967,2043.7,2042.7,2.15274008]
[1770649095474,1.99887967,2043.7,2042.2,1.90660955]
[1770649097166,2.23815288,2043.4,2042.2,1.90660955]
[1770649097469,1.99330288,2043.0,2042.0,1.91072979]
[1770649097869,1.99330288,2043.0,2042.0,0.00412024]
[1770649098267,1.99330288,2043.0,2042.0,1.91072979]
[1770649098770,1.89296186,2043.2,2042.0,2.15572979]
[1770649099267,43.62980743,2043.8,2042.7,6.36744688]
[1770649099268,1.89296186,2043.5,2042.7,6.36744688]
[1770649099875,1.89296186,2043.5,2042.7,8.32639846]
[1770649100464,1.89296186,2043.5,2042.7,6.36744688]
[1770649100872,1.89296186,2043.4,2042.7,6.36744688]
[1770649101575,1.89296186,2043.7,2042.8,1.95895158]
[1770649102273,1.89296186,2043.7,2042.7,6.36744688]
[1770649102664,1.89296186,2043.7,2042.8,1.95895158]
[1770649102977,1.89296186,2043.7,2042.8,5.78995158]
[1770649103363,1.89296186,2043.7,2042.8,3.831]
[1770649103571,1.89296186,2043.5,2042.8,1.80866382]
[1770649103874,0.07722578,2043.3,2042.7,6.2902211]
[1770649104078,2.87454979,2043.7,2042.8,2.02233618]
[1770649104274,0.25562221,2043.7,2042.8,2.02233618]
[1770649104774,0.00430573,2044.0,2043.0,2.02961348]
[1770649105673,0.00430573,2044.0,2043.2,2.02951791]
[1770649105875,0.23378747,2044.7,2043.4,2.02736504]
[1770649106076,41.03378747,2044.7,2043.4,2.02736504]
[1770649106475,0.23378747,2044.7,2043.4,2.02736504]
[1770649106876,0.00519533,2044.7,2043.4,2.02736504]
[1770649107670,0.00519533,2044.7,2043.6,2.02832806]
[1770649107870,0.00519533,2044.7,2043.6,2.03394934]
[1770649108574,0.00519533,2044.7,2043.6,0.00562128]
[1770649108575,0.18756716,2044.5,2043.6,0.00562128]
[1770649109278,0.18756716,2044.5,2043.3,2.03356577]
[1770649109475,0.1660456,2044.3,2043.3,2.03356577]
[1770649109877,0.1660456,2044.1,2042.8,2.03614128]
[1770649110272,0.15014762,2043.9,2042.8,0.0046659]
[1770649110472,0.15014762,2043.9,2042.8,2.03450206]
[1770649110674,0.16275785,2043.7,2042.8,2.03450206]
[1770649110990,0.40754785,2043.8,2042.8,2.03450206]
[1770649111279,0.16275785,2043.7,2042.8,2.03450206]
[1770649112078,3.02151412,2044.2,2042.8,2.03450206]
[1770649112279,0.14696433,2044.2,2042.8,2.03450206]
[1770649112680,0.13643035,2044.0,2042.8,2.03450206]
[1770649114272,0.10479215,2043.8,2042.8,0.0046659]
[1770649114475,0.10479215,2043.8,2042.7,6.2902211]
[1770649114476,0.1005461,2043.4,2042.7,6.2902211]
[1770649114675,2.97042999,2043.7,2042.8,2.03108512]
[1770649114884,0.3406902,2043.6,2042.8,2.03108512]
[1770649115186,0.0958802,2043.5,2042.7,6.2902211]
[1770649115584,0.0958802,2043.5,2042.7,6.29518004]
[1770649116478,0.24481,2043.6,2042.8,2.02806883]
[1770649116876,0.0705131,2043.3,2042.7,5.80483004]
[1770649117283,0.0705131,2043.3,2041.6,4.4464089]
[1770649117284,0.24486,2043.2,2042.2,2.06332538]
[1770649118084,0.24492,2042.7,2041.3,2.06313276]
[1770649118277,0.40878351,2042.6,2041.3,2.06868115]
[1770649118484,0.40751502,2042.5,2041.3,2.06868115]
[1770649118681,40.8,2042.6,2041.3,2.06868115]
[1770649119089,0.00483201,2042.7,2041.5,2.063767]
[1770649119291,31.652,2043.1,2041.9,2.063767]
[1770649119479,32.04407755,2043.7,2042.1,2.06295498]
[1770649119684,41.19207755,2043.6,2042.1,2.06295498]
[1770649120087,31.652,2043.7,2042.5,2.06295498]
[1770649120386,0.36902441,2043.7,2042.5,2.06295498]
[1770649120888,0.00473058,2043.7,2042.5,2.06295498]
[1770649121086,0.36429383,2043.5,2042.2,2.0685246]
[1770649121282,0.34738953,2043.5,2042.2,2.0685246]
[1770649121582,0.34781232,2043.3,2042.2,2.0685246]
[1770649122580,0.29805854,2043.1,2042.2,2.0685246]
[1770649122784,0.29805854,2042.9,2041.9,2.08477714]
[1770649123291,0.29805854,2042.9,2041.3,0.00554839]
[1770649123292,0.29805854,2042.7,2041.4,2.08477714]
[1770649123590,0.24491,2042.8,2041.4,2.08477714]
[1770649124291,0.26518374,2042.7,2041.4,2.08477714]
[1770649124790,0.26565962,2043.5,2041.6,2.08426726]
[1770649125182,0.00473058,2043.7,2042.2,2.08426726]
[1770649125382,0.00473058,2043.7,2042.4,2.08426726]
[1770649125685,0.00473058,2043.7,2042.8,2.0839644]
[1770649125885,0.00473058,2043.7,2042.8,2.08893012]
[1770649126585,0.23391465,2043.5,2042.8,0.00496572]
[1770649126790,0.24481,2043.6,2042.8,2.08753915]
[1770649127088,0.00473058,2043.7,2042.8,2.08753915]
[1770649127483,0.00473058,2043.7,2043.0,2.08231097]
[1770649129784,0.18485795,2043.6,2042.1,2.08259252]
[1770649130092,0.17989223,2043.4,2042.1,2.08259252]
[1770649130293,0.40856153,2043.2,2042.1,2.08259252]
[1770649130590,0.16714842,2042.7,2041.3,2.08335193]
[1770649130787,0.16714842,2042.7,2041.3,2.08966568]
[1770649131296,0.16714842,2042.3,2041.3,2.08966568]
[1770649131493,31.89896,2042.4,2041.3,2.08966568]
[1770649131894,32.05083771,2042.4,2041.3,2.08966568]
[1770649132089,31.654,2042.4,2041.3,2.08966568]
[1770649132394,0.13583259,2042.3,2041.3,2.08966568]
[1770649132791,31.654,2042.4,2041.3,2.08966568]
[1770649133093,0.1451982,2043.0,2041.6,0.24505]
[1770649133395,31.8011982,2043.3,2041.9,2.07818286]
[1770649133893,72.6011982,2043.3,2041.9,2.07818286]
[1770649134291,0.11379853,2043.2,2041.9,2.07818286]
[1770649135798,72.456,2043.3,2041.9,2.07818286]
[1770649137098,0.00473058,2043.7,2042.2,2.32620514]
[1770649137297,0.08085883,2043.7,2042.2,2.32620514]
[1770649137499,0.06093417,2043.5,2042.2,2.08122514]
[1770649139694,3.159665,2043.6,2042.2,2.08122514]
[1770649140004,0.24481,2043.6,2042.2,2.08122514]
[1770649140497,40.80473058,2043.7,2042.2,2.08122514]
[1770649140702,0.03665211,2043.6,2042.2,2.08122514]
[1770649140999,3.159685,2043.5,2042.2,2.08122514]
[1770649141200,84.47119012,2043.7,2042.4,2.06980077]
[1770649141201,43.75623769,2043.7,2042.4,2.06980077]
[1770649141395,40.80473058,2043.7,2042.6,2.06959755]
[1770649141591,2.914855,2044.4,2043.2,2.06723226]
[1770649141795,0.02165112,2044.5,2043.2,2.06723226]
[1770649142092,34.574855,2044.7,2043.2,2.06723226]
[1770649142403,0.27357642,2045.0,2043.6,2.06723226]
[1770649142591,0.02892642,2044.8,2043.6,2.07180891]
[1770649142796,40.8,2044.9,2043.6,2.07180891]
[1770649142999,40.82892642,2044.9,2043.6,2.07180891]
[1770649143600,0.01399441,2044.8,2043.6,2.07180891]
[1770649144800,0.00356756,2044.6,2043.6,2.07180891]
[1770649145107,0.00356756,2044.5,2043.3,2.05589738]
[1770649145295,0.24473,2044.3,2043.3,2.05589738]
[1770649145696,31.656,2044.4,2043.3,2.05589738]
[1770649145897,31.656,2044.4,2043.3,2.06160928]
[1770649148599,0.24467,2044.8,2043.3,2.30644928]
[1770649148801,6.02376,2043.2,2042.5,3.7092289]
[1770649149005,0.24489,2043.0,2042.0,2.06294078]
[1770649149205,2.914855,2043.4,2042.0,2.06294078]
[1770649149398,40.8,2043.3,2042.0,2.06294078]
[1770649149600,0.24486,2043.2,2042.0,2.06294078]
[1770649149903,0.24486,2043.2,2042.0,2.06641763]
[1770649149904,4.23245364,2043.1,2042.0,2.06641763]
[1770649150098,0.25000111,2043.2,2042.0,2.06641763]
[1770649150300,4.82299124,2043.1,2042.0,2.06641763]
[1770649150501,0.00514111,2043.2,2042.0,2.06641763]
[1770649150700,31.651,2043.1,2042.0,2.06641763]
[1770649151606,0.44111849,2043.0,2042.0,2.06641763]
[1770649153203,31.651,2043.1,2042.0,2.06641763]
[1770649153403,0.41530077,2042.8,2042.0,2.12816143]
[1770649153599,0.2449,2042.9,2042.0,2.12816143]
[1770649153796,31.655,2042.8,2042.0,2.12816143]
[1770649154000,31.655,2042.9,2042.0,2.12816143]
[1770649154399,0.00514111,2043.2,2042.0,2.12816143]
[1770649154604,31.655,2043.1,2042.0,2.12816143]
[1770649154805,0.00514111,2043.2,2042.2,2.12320387]
[1770649155004,43.87458743,2043.9,2042.5,2.12063332]
[1770649155005,0.24478,2043.9,2042.5,2.12063332]